bitfinex-derivatives/quotes_BTCF0:USTF0_20241203
["timestamp","ask_amount","ask_price","bid_price","bid_amount"]
[1733189960403,0.052229,95714.0,95712.0,0.0331]
[1733189961403,0.3618,95720.0,95712.0,0.0331]
[1733189961711,0.15715742,95719.0,95716.0,0.052228]
[1733189962106,0.001,95717.0,95716.0,0.052228]
[1733189962501,0.001,95717.0,95712.0,0.0331]
[1733189962701,0.15715742,95719.0,95712.0,0.0331]
[1733189962702,0.052229,95714.0,95712.0,0.0331]
[1733189964616,0.001,95717.0,95712.0,0.0331]
[1733189964913,0.001,95717.0,95715.0,0.052228]
[1733189965303,0.3608,95720.0,95712.0,0.0331]
[1733189965505,0.3608,95720.0,95717.0,0.052227]
[1733189965814,0.15757062,95719.0,95712.0,0.0331]
[1733189966005,0.05223,95713.0,95711.0,0.3608]
[1733189966310,0.15685704,95712.0,95711.0,0.3608]
[1733189966616,0.052236,95701.0,95699.0,0.035]
[1733189966814,0.052236,95701.0,95699.0,0.0324]
[1733189967919,0.052237,95699.0,95698.0,0.36316722]
[1733189968110,0.052237,95699.0,95698.0,0.36236722]
[1733189969016,0.01979461,95706.0,95698.0,0.36236722]
[1733189969211,0.052235,95703.0,95702.0,0.052236]
[1733189969515,0.052237,95700.0,95698.0,0.36236722]
[1733189969700,0.001,95699.0,95698.0,0.36236722]
[1733189970309,0.052237,95700.0,95698.0,0.36236722]
[1733189972017,0.001,95699.0,95698.0,0.36236722]
[1733189972420,0.052237,95700.0,95698.0,0.36236722]
[1733189972608,0.053237,95700.0,95698.0,0.36236722]
[1733189973015,0.052237,95700.0,95698.0,0.36236722]
[1733189973209,0.001,95699.0,95698.0,0.36236722]
[1733189974812,0.01923439,95705.0,95698.0,0.36236722]
[1733189975008,0.07146839,95705.0,95703.0,0.052235]
[1733189975210,0.15707138,95704.0,95703.0,0.052235]
[1733189976007,0.052234,95705.0,95703.0,0.052235]
[1733189976008,0.001,95705.0,95703.0,0.052235]
[1733189976215,0.001,95705.0,95704.0,0.0632]
[1733189976417,0.0026,95710.0,95709.0,0.052232]
[1733189976716,0.0026,95717.0,95715.0,0.052228]
[1733189976914,0.052225,95721.0,95709.0,0.3608]
[1733189977214,0.052225,95721.0,95719.0,0.052226]
[1733189977605,0.15676144,95720.0,95719.0,0.052226]
[1733189979219,0.15776144,95720.0,95719.0,0.052226]
[1733189980115,0.16076144,95720.0,95719.0,0.052226]
[1733189985117,0.52156144,95720.0,95704.0,0.02841204]
[1733189985420,0.052227,95719.0,95717.0,0.052227]
[1733189985924,0.15584164,95718.0,95717.0,0.052227]
[1733189987121,0.15884164,95718.0,95717.0,0.052227]
[1733189987826,0.21106864,95718.0,95717.0,0.052227]
[1733189989324,0.21106864,95718.0,95704.0,0.04748615]
[1733189989325,0.05223,95712.0,95709.0,0.052232]
[1733189989522,0.05223,95712.0,95704.0,0.02841204]
[1733189989523,0.05223,95712.0,95711.0,0.052231]
[1733189991227,0.05323,95712.0,95711.0,0.052231]
[1733189991627,0.05423,95712.0,95711.0,0.052231]
[1733189995822,0.002,95712.0,95711.0,0.052231]
[1733189996318,0.05423,95712.0,95711.0,0.052231]
[1733189997434,0.002,95712.0,95711.0,0.052231]
[1733189997832,0.001,95712.0,95711.0,0.052231]
[1733189998427,0.052229,95714.0,95713.0,0.05223]
[1733190000838,0.052229,95714.0,95680.0,0.48188182]
[1733190000839,0.052229,95716.0,95704.0,0.052234]
[1733190001034,0.3608,95705.0,95698.0,0.00156722]
[1733190001334,0.3608,95705.0,95699.0,0.052237]
[1733190001335,0.15619034,95704.0,95699.0,0.052237]
[1733190001537,0.15619034,95704.0,95703.0,0.052235]
[1733190002036,0.15619034,95704.0,95698.0,0.00156722]
[1733190002037,0.0026,95711.0,95710.0,0.052231]
[1733190002340,0.0026,95711.0,95698.0,0.00156722]
[1733190002341,0.3608,95712.0,95711.0,0.052231]
[1733190003234,0.001,95714.0,95711.0,0.052231]
[1733190003443,0.001,95714.0,95713.0,0.05223]
[1733190003937,0.3608,95730.0,95720.0,0.052226]
[1733190004232,0.0026,95727.0,95726.0,0.052223]
[1733190004429,0.3608,95730.0,95729.0,0.052221]
[1733190005936,0.3628,95730.0,95729.0,0.052221]
[1733190007036,0.3668,95730.0,95729.0,0.052221]
[1733190007631,0.3628,95730.0,95729.0,0.052221]
[1733190007827,0.3618,95730.0,95729.0,0.052221]
[1733190008037,0.3618,95730.0,95729.0,0.07114445]
[1733190008636,0.3618,95730.0,95729.0,0.052221]
[1733190010129,0.3628,95730.0,95729.0,0.052221]
[1733190010637,0.3618,95730.0,95729.0,0.052221]
[1733190010938,0.3628,95730.0,95729.0,0.052221]
[1733190012039,0.3618,95730.0,95729.0,0.052221]
[1733190012339,0.3608,95730.0,95729.0,0.052221]
[1733190012536,0.3618,95730.0,95729.0,0.052221]
[1733190013631,0.3628,95730.0,95729.0,0.052221]
[1733190014233,0.3618,95730.0,95729.0,0.052221]
[1733190014433,0.3608,95730.0,95729.0,0.052221]
[1733190014637,0.3618,95730.0,95729.0,0.052221]
[1733190015034,0.3628,95730.0,95729.0,0.052221]
[1733190016638,0.3618,95730.0,95729.0,0.052221]
[1733190017440,0.3628,95730.0,95729.0,0.052221]
[1733190018047,0.3618,95730.0,95729.0,0.052221]
[1733190018346,0.415021,95730.0,95729.0,0.052221]
[1733190020548,0.3618,95730.0,95729.0,0.052221]
[1733190021040,0.3628,95730.0,95729.0,0.052221]
[1733190021348,0.3618,95730.0,95729.0,0.052221]
[1733190021546,0.3628,95730.0,95729.0,0.052221]
[1733190022145,0.052223,95726.0,95725.0,0.052224]
[1733190022648,0.052223,95726.0,95718.0,0.13024]
[1733190022649,0.3628,95730.0,95718.0,0.13024]
[1733190022847,0.3628,95730.0,95727.0,0.052222]
[1733190022848,0.052221,95729.0,95727.0,0.052222]
[1733190023156,0.052222,95728.0,95727.0,0.052222]
[1733190024449,0.053222,95728.0,95727.0,0.052222]
[1733190025047,0.054222,95728.0,95727.0,0.052222]
[1733190030842,0.052228,95717.0,95716.0,0.182468]
[1733190031051,0.052228,95717.0,95716.0,0.052228]
[1733190032553,0.053228,95717.0,95716.0,0.052228]
[1733190034957,0.001,95717.0,95716.0,0.052228]
[1733190036953,0.053228,95717.0,95716.0,0.052228]
[1733190038054,0.052231,95711.0,95710.0,0.053112]
[1733190038249,0.052231,95711.0,95710.0,0.052232]
[1733190039360,0.054231,95711.0,95710.0,0.052232]
[1733190045556,0.073493,95711.0,95710.0,0.052232]
[1733190048459,0.054231,95711.0,95710.0,0.052232]
[1733190054356,0.052234,95707.0,95706.0,0.07192038]
[1733190054562,0.052234,95707.0,95706.0,0.052233]
[1733190055258,0.002,95711.0,95710.0,0.052232]
[1733190055463,0.054231,95711.0,95710.0,0.052232]
[1733190056063,0.053231,95711.0,95710.0,0.052232]
[1733190056260,0.052231,95711.0,95710.0,0.052232]
[1733190056859,0.053231,95711.0,95710.0,0.052232]
[1733190057553,0.054231,95711.0,95710.0,0.052232]
[1733190059061,0.002,95711.0,95710.0,0.052232]
[1733190059863,0.054231,95711.0,95710.0,0.052232]
[1733190061568,0.002,95711.0,95702.0,0.01931421]
[1733190061864,0.052234,95706.0,95705.0,0.052234]
[1733190062964,0.053234,95706.0,95705.0,0.052234]
[1733190064373,0.054234,95706.0,95705.0,0.052234]
[1733190066679,0.002,95706.0,95705.0,0.052234]
[1733190073073,0.002,95706.0,95705.0,0.413034]
[1733190086980,0.3634,95719.0,95705.0,0.413034]
[1733190086981,0.0026,95719.0,95705.0,0.413034]
[1733190087187,0.0304,95725.0,95724.0,0.052224]
[1733190087489,0.18752898,95725.0,95724.0,0.052224]
[1733190088687,0.3608,95731.0,95730.0,0.052221]
[1733190088985,0.51788674,95731.0,95730.0,0.052221]
[1733190091394,0.51988674,95731.0,95730.0,0.052221]
[1733190092393,0.002,95731.0,95730.0,0.413021]
[1733190105192,0.002,95731.0,95730.0,0.43392824]
[1733190105390,0.054221,95731.0,95730.0,0.052221]
[1733190105587,0.052224,95726.0,95725.0,0.052224]
[1733190106095,0.05223,95715.0,95714.0,0.05223]
[1733190106795,0.052231,95712.0,95711.0,0.3608]
[1733190107204,0.20815752,95712.0,95711.0,0.3608]
[1733190107989,0.20815752,95712.0,95710.0,0.052232]
[1733190108187,0.0306,95711.0,95710.0,0.052232]
[1733190109495,0.0633,95711.0,95710.0,0.052232]
[1733190110200,0.0643,95711.0,95710.0,0.052232]
[1733190114006,0.052234,95708.0,95706.0,0.052234]
[1733190115094,0.053234,95708.0,95706.0,0.052234]
[1733190116201,0.054234,95708.0,95706.0,0.052234]
[1733190117801,0.002,95708.0,95705.0,0.3608]
[1733190118004,0.052234,95706.0,95705.0,0.3608]
[1733190119201,0.053234,95706.0,95705.0,0.3608]
[1733190120406,0.054234,95706.0,95705.0,0.3608]
[1733190121107,0.054234,95706.0,95705.0,0.413035]
[1733190125618,0.054234,95706.0,95705.0,0.052235]
[1733190130212,0.052235,95704.0,95703.0,0.04022565]
[1733190130418,0.052235,95704.0,95703.0,0.02091393]
[1733190131706,0.054235,95704.0,95703.0,0.02091393]
[1733190135118,0.054235,95704.0,95703.0,0.07314993]
[1733190136110,0.054235,95704.0,95703.0,0.02091393]
[1733190140420,0.054235,95704.0,95693.0,0.3712]
[1733190140421,0.052241,95694.0,95693.0,0.0104]
[1733190140624,0.052246,95684.0,95683.0,0.00156758]
[1733190141822,0.053246,95684.0,95683.0,0.00156758]
[1733190142529,0.054246,95684.0,95683.0,0.00156758]
[1733190151650,0.21150672,95684.0,95683.0,0.00156758]
[1733190152246,0.21150672,95684.0,95673.0,8.213e-05]
[1733190152447,0.052252,95674.0,95673.0,8.213e-05]
[1733190154145,0.20887581,95674.0,95673.0,8.213e-05]
[1733190154845,0.22788994,95674.0,95673.0,8.213e-05]
[1733190155040,0.22988994,95674.0,95673.0,8.213e-05]
[1733190155554,0.33441209,95674.0,95673.0,8.213e-05]
[1733190155751,0.33441209,95674.0,95664.0,0.00127]
[1733190155752,0.052257,95665.0,95664.0,0.00127]
[1733190156058,0.543097,95665.0,95664.0,0.00127]
[1733190156751,0.54317913,95665.0,95664.0,0.00127]
[1733190157351,0.54417913,95665.0,95664.0,0.00127]
[1733190158349,0.54517913,95665.0,95664.0,0.00127]
[1733190158952,0.49292213,95665.0,95653.0,0.02092599]
[1733190159147,0.06883482,95664.0,95653.0,0.02092599]
[1733190159553,0.052261,95657.0,95653.0,0.02092599]
[1733190159754,0.052261,95657.0,95654.0,0.38062585]
[1733190160756,0.052262,95656.0,95654.0,0.38062585]
[1733190162060,0.054262,95656.0,95654.0,0.38062585]
[1733190164964,0.053262,95656.0,95654.0,0.38062585]
[1733190165262,0.054262,95656.0,95654.0,0.38062585]
[1733190166357,0.002,95656.0,95654.0,0.38062585]
[1733190166566,0.052262,95655.0,95654.0,0.38062585]
[1733190167656,0.053262,95655.0,95654.0,0.38062585]
[1733190168062,0.054262,95655.0,95654.0,0.38062585]
[1733190170263,0.054262,95655.0,95654.0,0.3608]
[1733190170563,0.052266,95648.0,95647.0,0.0957]
[1733190171162,0.052266,95648.0,95647.0,0.11504765]
[1733190171356,0.002,95655.0,95642.0,0.38258813]
[1733190171562,0.052269,95643.0,95642.0,0.02090813]
[1733190171767,0.052269,95643.0,95642.0,0.07317713]
[1733190172879,0.053269,95643.0,95642.0,0.07317713]
[1733190174361,0.054269,95643.0,95642.0,0.07317713]
[1733190174865,0.002,95643.0,95642.0,0.07317713]
[1733190180272,0.001,95643.0,95642.0,0.07317713]
[1733190180467,0.002,95643.0,95642.0,0.07317713]
[1733190185272,0.0003,95654.0,95642.0,0.02090813]
[1733190185584,0.0003,95654.0,95653.0,0.052264]
[1733190185873,0.0003,95654.0,95653.0,0.182304]
[1733190186074,0.0003,95654.0,95653.0,0.279304]
[1733190186468,0.0013,95654.0,95653.0,0.279304]
[1733190187373,0.0003,95654.0,95653.0,0.279304]
[1733190187574,0.0013,95654.0,95653.0,0.279304]
[1733190187978,0.0003,95654.0,95653.0,0.29881378]
[1733190188275,0.0013,95654.0,95653.0,0.29981378]
[1733190190170,0.0013,95654.0,95653.0,0.26661378]
[1733190191474,0.0013,95654.0,95653.0,0.13657378]
[1733190191676,0.0013,95654.0,95653.0,0.20281378]
[1733190196797,0.0013,95654.0,95653.0,0.22373931]
[1733190201194,8.213e-05,95665.0,95653.0,0.22373931]
[1733190201195,8.213e-05,95665.0,95664.0,0.052258]
[1733190201391,8.213e-05,95665.0,95664.0,0.543018]
[1733190202194,0.00208213,95665.0,95664.0,0.543018]
[1733190202493,0.00208213,95665.0,95664.0,0.56190515]
[1733190203294,0.00208213,95665.0,95664.0,0.56290515]
[1733190203696,0.00208213,95665.0,95664.0,0.544018]
[1733190203901,0.21136542,95665.0,95664.0,0.001]
[1733190204294,0.052263,95655.0,95654.0,0.052263]
[1733190205006,0.20936784,95655.0,95654.0,0.052263]
[1733190205501,0.22838461,95655.0,95654.0,0.052263]
[1733190206200,0.22938461,95655.0,95654.0,0.053263]
[1733190211399,0.22938461,95655.0,95654.0,0.001]
[1733190212204,0.052266,95649.0,95645.0,0.052268]
[1733190212403,0.032,95648.0,95645.0,0.052268]
[1733190212707,0.18869917,95648.0,95645.0,0.052268]
[1733190212891,0.18869917,95648.0,95646.0,0.052267]
[1733190213803,0.18969917,95648.0,95646.0,0.052267]
[1733190214703,0.001,95648.0,95646.0,0.052267]
[1733190215204,0.002,95648.0,95646.0,0.052267]
[1733190215596,0.002,95648.0,95646.0,0.053267]
[1733190225615,0.002,95648.0,95647.0,0.12996]
[1733190226809,8.213e-05,95665.0,95658.0,0.052261]
[1733190227007,8.213e-05,95665.0,95664.0,0.052258]
[1733190227204,0.052258,95663.0,95659.0,0.05226]
[1733190227522,0.052258,95663.0,95661.0,0.052259]
[1733190228308,8.213e-05,95665.0,95664.0,0.052258]
[1733190229112,0.052258,95663.0,95661.0,0.002]
[1733190229316,8.213e-05,95665.0,95664.0,0.052258]
[1733190229615,8.213e-05,95665.0,95664.0,0.053258]
[1733190230110,8.213e-05,95665.0,95664.0,0.052258]
[1733190230510,0.00208213,95665.0,95664.0,0.052258]
[1733190231717,0.00208213,95665.0,95664.0,0.053258]
[1733190233711,0.00208213,95665.0,95664.0,0.001]
[1733190233912,0.21133086,95665.0,95664.0,0.001]
[1733190235114,0.34125086,95665.0,95664.0,0.001]
[1733190235817,0.052264,95652.0,95650.0,0.052265]
[1733190236017,0.3608,95651.0,95650.0,0.052265]
[1733190238617,0.3618,95651.0,95650.0,0.053265]
[1733190243633,0.001,95651.0,95650.0,0.053265]
[1733190248218,0.052265,95652.0,95650.0,0.052265]
[1733190248422,0.001,95651.0,95650.0,0.053265]
[1733190249028,0.001,95651.0,95650.0,0.052265]
[1733190249329,0.054265,95652.0,95650.0,0.052265]
[1733190249924,0.052265,95652.0,95650.0,0.052265]
[1733190250122,0.002,95651.0,95650.0,0.052265]
[1733190252034,0.3608,95660.0,95659.0,0.05226]
[1733190254534,0.3608,95660.0,95659.0,0.05326]
[1733190255132,0.3628,95660.0,95659.0,0.05226]
[1733190261234,0.3618,95660.0,95659.0,0.05326]
[1733190263543,0.41406,95660.0,95659.0,0.05326]
[1733190265140,0.05326,95660.0,95659.0,0.05326]
[1733190272941,0.001,95660.0,95659.0,0.05326]
[1733190273742,0.001,95660.0,95659.0,0.18318]
[1733190281036,0.001,95660.0,95659.0,0.05326]
[1733190281237,0.05326,95660.0,95659.0,0.05326]
[1733190288044,0.05326,95660.0,95659.0,0.001]
[1733190288260,0.20953872,95660.0,95659.0,0.001]
[1733190302068,0.20953872,95660.0,95659.0,0.05326]
[1733190304072,0.001,95660.0,95659.0,0.05326]
[1733190304568,0.001,95660.0,95659.0,0.05461226]
[1733190305565,0.001,95660.0,95659.0,0.05326]
[1733190305776,0.001,95660.0,95659.0,0.05514392]
[1733190306864,0.001,95660.0,95659.0,0.07553213]
[1733190308163,0.05326,95660.0,95659.0,0.07553213]
[1733190309373,0.41406,95660.0,95659.0,0.07553213]
[1733190313474,0.41406,95660.0,95659.0,0.05573225]
[1733190313676,0.41406,95660.0,95659.0,0.07543343]
[1733190314669,0.41406,95660.0,95659.0,0.05573225]
[1733190316369,0.05326,95660.0,95659.0,0.05573225]
[1733190317077,0.41406,95660.0,95659.0,0.05573225]
[1733190317281,0.41406,95660.0,95659.0,0.00347225]
[1733190319971,0.57061174,95660.0,95659.0,0.00347225]
[1733190320171,0.70041174,95660.0,95659.0,0.00347225]
[1733190324979,0.57061174,95660.0,95659.0,0.00347225]
[1733190328972,0.51835174,95660.0,95659.0,0.00347225]
[1733190329180,0.15755174,95660.0,95659.0,0.00347225]
[1733190329774,0.15755174,95660.0,95659.0,0.13327225]
[1733190330775,0.001,95660.0,95659.0,0.13327225]
[1733190333378,8.213e-05,95665.0,95664.0,0.052258]
[1733190333580,8.213e-05,95665.0,95664.0,0.413058]
[1733190333776,8.213e-05,95665.0,95664.0,0.41553025]
[1733190334682,0.00308213,95665.0,95664.0,0.41553025]
[1733190335194,0.00408213,95665.0,95664.0,0.41553025]
[1733190335481,0.0026,95676.0,95664.0,0.36327225]
[1733190335687,0.0026,95682.0,95681.0,0.052248]
[1733190335886,0.3608,95689.0,95684.0,0.052246]
[1733190336086,0.15639516,95688.0,95681.0,0.13227225]
[1733190336391,0.052247,95683.0,95681.0,0.13227225]
[1733190336886,0.052247,95683.0,95682.0,0.00247225]
[1733190338276,0.059247,95683.0,95682.0,0.00247225]
[1733190339278,0.068247,95683.0,95682.0,0.00347225]
[1733190350196,0.068247,95683.0,95664.0,0.3608]
[1733190350197,0.22461251,95683.0,95669.0,0.052255]
[1733190350387,0.3608,95676.0,95662.0,0.013]
[1733190350685,0.052258,95663.0,95656.0,0.1298]
[1733190350895,0.0316,95662.0,95656.0,0.14942787]
[1733190351083,0.18812862,95662.0,95657.0,0.052261]
[1733190351291,0.18812862,95662.0,95658.0,0.052261]
[1733190351893,0.18812862,95662.0,95661.0,0.00256798]
[1733190352392,0.18812862,95662.0,95661.0,0.00156798]
[1733190352593,0.18812862,95662.0,95661.0,0.00256798]
[1733190353393,0.21882862,95662.0,95661.0,0.00256798]
[1733190354500,0.052267,95648.0,95643.0,0.00151]
[1733190354805,0.052269,95644.0,95643.0,0.00151]
[1733190355998,0.053269,95644.0,95643.0,0.00151]
[1733190356197,0.054269,95644.0,95643.0,0.00351]
[1733190356499,0.119369,95644.0,95643.0,0.00351]
[1733190358505,0.118369,95644.0,95643.0,0.00351]
[1733190361802,0.63530506,95644.0,95643.0,0.00351]
[1733190363601,0.57020506,95644.0,95643.0,0.00351]
[1733190368613,0.51793606,95644.0,95643.0,0.00351]
[1733190375098,0.3618,95644.0,95643.0,0.00351]
[1733190375301,0.3618,95644.0,95643.0,0.09771]
[1733190376104,0.001,95644.0,95643.0,0.23311]
[1733190379306,0.001,95644.0,95643.0,0.00351]
[1733190379506,0.29233729,95644.0,95632.0,0.013]
[1733190379710,0.29233729,95644.0,95611.0,0.2498555]
[1733190379711,0.052277,95628.0,95624.0,0.0104]
[1733190379911,0.187677,95628.0,95613.0,0.01955055]
[1733190380210,0.34370849,95628.0,95613.0,0.01955055]
[1733190380411,0.44828091,95628.0,95613.0,0.01955055]
[1733190380603,0.34370849,95628.0,95613.0,0.01955055]
[1733190380809,0.36262245,95628.0,95619.0,0.052282]
[1733190381110,0.36262245,95628.0,95621.0,0.052281]
[1733190381505,0.36262245,95628.0,95624.0,0.05228]
[1733190381714,0.36262245,95628.0,95627.0,0.00107787]
[1733190381715,0.36362245,95628.0,95627.0,0.00107787]
[1733190382610,0.29243149,95628.0,95627.0,0.00107787]
[1733190383110,0.15703149,95628.0,95627.0,0.00107787]
[1733190392925,0.00056001,95644.0,95640.0,0.052271]
[1733190393229,0.13356,95649.0,95644.0,0.052268]
[1733190393434,0.052268,95645.0,95644.0,0.052268]
[1733190393727,0.20809057,95645.0,95644.0,0.052268]
[1733190395310,0.15782257,95645.0,95644.0,0.052268]
[1733190395511,0.002,95645.0,95644.0,0.052268]
[1733190396518,0.15806947,95645.0,95644.0,0.052268]
[1733190403415,0.21033747,95645.0,95644.0,0.052268]
[1733190407421,0.15806947,95645.0,95644.0,0.052268]
[1733190407620,0.002,95645.0,95644.0,0.052268]
[1733190411341,0.15794063,95645.0,95644.0,0.052268]
[1733190413835,0.3608,95658.0,95657.0,0.052261]
[1733190414030,0.43948,95678.0,95666.0,0.052257]
[1733190414031,0.01971819,95670.0,95666.0,0.052257]
[1733190414223,0.01971819,95670.0,95666.0,0.049657]
[1733190414428,0.15720266,95668.0,95666.0,0.049657]
[1733190414628,0.15720266,95668.0,95659.0,0.05226]
[1733190414825,0.052259,95662.0,95659.0,0.05226]
[1733190415030,0.052259,95662.0,95649.0,0.01924802]
[1733190415338,0.052259,95662.0,95660.0,0.05226]
[1733190415339,0.15709493,95661.0,95660.0,0.05226]
[1733190416025,0.008,95662.0,95661.0,0.052259]
[1733190416431,0.15652443,95662.0,95661.0,0.052259]
[1733190416832,0.15652443,95665.0,95654.0,0.3608]
[1733190417136,0.13352,95666.0,95664.0,0.052258]
[1733190417334,0.15617843,95665.0,95664.0,0.052258]
[1733190417937,0.15617843,95666.0,95664.0,0.052258]
[1733190418134,0.052257,95666.0,95664.0,0.052258]
[1733190418533,0.15738124,95665.0,95664.0,0.052258]
[1733190418839,0.15738124,95665.0,95654.0,0.3608]
[1733190419043,0.052258,95663.0,95654.0,0.3608]
[1733190419434,0.1576041,95662.0,95661.0,0.052259]
[1733190420428,0.1576041,95662.0,95655.0,0.052262]
[1733190420634,0.1576041,95662.0,95656.0,0.052261]
[1733190420635,0.052261,95657.0,95656.0,0.052261]
[1733190421041,0.20919176,95657.0,95656.0,0.052261]
[1733190421635,0.15693076,95657.0,95656.0,0.052261]
[1733190421935,0.15618798,95660.0,95659.0,0.05226]
[1733190422245,0.413059,95661.0,95659.0,0.05226]
[1733190422544,0.15769886,95660.0,95659.0,0.05226]
[1733190423241,0.16569886,95660.0,95659.0,0.05226]
[1733190424351,0.052267,95647.0,95646.0,0.3608]
[1733190424540,0.052266,95648.0,95646.0,0.052267]
[1733190424840,0.1568622,95647.0,95646.0,0.052267]
[1733190426248,0.1763038,95647.0,95646.0,0.052267]
[1733190426544,0.1793038,95647.0,95635.0,0.3608]
[1733190426737,0.052268,95645.0,95642.0,0.052269]
[1733190426939,0.1793038,95647.0,95642.0,0.052269]
[1733190427147,0.1793038,95647.0,95637.0,0.02120906]
[1733190427148,0.052271,95640.0,95637.0,0.07348106]
[1733190427346,0.052271,95639.0,95637.0,0.07348106]
[1733190427547,0.20948673,95639.0,95637.0,0.07348106]
[1733190427750,0.052271,95639.0,95637.0,0.07348106]
[1733190428151,0.15721573,95638.0,95637.0,0.07348106]
[1733190428848,0.15721573,95638.0,95637.0,0.07548106]
[1733190432157,0.15721573,95638.0,95637.0,0.07391285]
[1733190434959,0.15721573,95638.0,95637.0,0.054272]
[1733190440264,0.052272,95638.0,95637.0,0.054272]
[1733190440760,0.20887088,95638.0,95637.0,0.054272]
[1733190447864,0.20887088,95638.0,95637.0,0.002]
[1733190450362,0.56967088,95638.0,95637.0,0.002]
[1733190468769,0.15659888,95638.0,95637.0,0.186952]
[1733190469170,0.052266,95648.0,95647.0,0.052267]
[1733190469467,0.20816371,95648.0,95647.0,0.052267]
[1733190470578,0.15589771,95648.0,95647.0,0.052267]
[1733190470873,0.002,95648.0,95647.0,0.07205177]
[1733190471384,0.16108115,95648.0,95647.0,0.07205177]
[1733190477889,0.005,95648.0,95647.0,0.07205177]
[1733190481578,0.005,95648.0,95647.0,0.09297854]
[1733190485085,0.005,95648.0,95647.0,0.22393854]
[1733190490679,0.0311,95667.0,95660.0,0.05226]
[1733190490892,0.00056001,95676.0,95661.0,0.13096]
[1733190491082,0.0333,95680.0,95668.0,0.052255]
[1733190491390,0.5167163,95669.0,95668.0,0.052255]
[1733190493597,0.5247163,95669.0,95668.0,0.052255]
[1733190493788,0.5337163,95669.0,95668.0,0.052255]
[1733190494695,0.5337163,95669.0,95668.0,0.07184083]
[1733190506795,0.5337163,95669.0,95668.0,0.052255]
[1733190506987,0.5337163,95669.0,95668.0,0.183215]
[1733190507405,0.5337163,95669.0,95668.0,0.052255]
[1733190516108,0.5257163,95669.0,95668.0,0.052255]
[1733190516406,0.5317163,95669.0,95668.0,0.052255]
[1733190521603,0.3758,95669.0,95668.0,0.052255]
[1733190530324,0.3758,95669.0,95668.0,0.182535]
[1733190532816,0.015,95669.0,95668.0,0.182535]
[1733190535218,0.013,95669.0,95668.0,0.182535]
[1733190535422,0.013,95669.0,95665.0,0.01980248]
[1733190535611,0.013,95669.0,95660.0,0.0026]
[1733190535612,0.05226,95661.0,95660.0,0.0026]
[1733190535918,0.20950209,95661.0,95659.0,0.052261]
[1733190536215,0.0619,95660.0,95659.0,0.052261]
[1733190536615,0.27085508,95660.0,95659.0,0.052261]
[1733190537418,0.27185508,95660.0,95659.0,0.052261]
[1733190538212,0.27385508,95660.0,95659.0,0.052261]
[1733190541216,0.052263,95655.0,95654.0,0.052263]
[1733190541419,0.413063,95655.0,95654.0,0.052263]
[1733190541619,0.5689766,95655.0,95654.0,0.052263]
[1733190542320,0.5699766,95655.0,95654.0,0.052263]
[1733190542516,0.5699766,95655.0,95654.0,0.053263]
[1733190544021,0.5699766,95655.0,95654.0,0.07218789]
[1733190544722,0.5177136,95655.0,95654.0,0.07218789]
[1733190544910,0.1569136,95655.0,95654.0,0.07218789]
[1733190550824,0.001,95655.0,95654.0,0.07218789]
[1733190551015,0.001,95655.0,95654.0,0.20222789]
[1733190553222,0.001,95655.0,95654.0,0.07218789]
[1733190553421,0.001,95655.0,95654.0,0.20222789]
[1733190554226,0.414063,95655.0,95654.0,0.14996489]
[1733190554624,0.414063,95655.0,95654.0,0.20222789]
[1733190555420,0.414063,95655.0,95654.0,0.07218789]
[1733190559430,0.57051154,95655.0,95654.0,0.07218789]
[1733190560231,0.57051154,95655.0,95654.0,0.01992489]
[1733190563831,0.57051154,95655.0,95654.0,0.001]
[1733190565134,0.58994071,95655.0,95654.0,0.001]
[1733190565538,0.59494071,95655.0,95654.0,0.001]
[1733190566038,0.59794071,95655.0,95654.0,0.001]
[1733190579049,0.72798071,95655.0,95654.0,0.001]
[1733190589245,0.052267,95647.0,95639.0,0.0104]
[1733190589442,0.052267,95647.0,95638.0,0.0026]
[1733190589443,0.052272,95639.0,95638.0,0.0026]
[1733190589653,0.052274,95635.0,95634.0,0.0015683]
[1733190589954,0.20878177,95635.0,95634.0,0.0015683]
[1733190591149,0.20878177,95635.0,95634.0,0.0035683]
[1733190592953,0.20878177,95635.0,95634.0,0.002]
[1733190597065,0.20878177,95635.0,95634.0,0.054274]
[1733190597066,0.51730777,95635.0,95634.0,0.054274]
[1733190597262,0.15650777,95635.0,95634.0,0.054274]
[1733190597556,0.052271,95640.0,95634.0,0.13204]
[1733190597761,0.052271,95640.0,95639.0,0.052272]
[1733190598259,0.20810978,95640.0,95639.0,0.052272]
[1733190600059,0.052274,95635.0,95634.0,0.052274]
[1733190600364,0.052274,95635.0,95630.0,0.113377]
[1733190600365,0.052276,95631.0,95630.0,0.113377]
[1733190600862,0.20811168,95631.0,95630.0,0.113377]
[1733190601559,0.20911168,95631.0,95630.0,0.113377]
[1733190602556,0.15683568,95631.0,95630.0,0.113377]
[1733190603857,0.001,95631.0,95630.0,0.113377]
[1733190606065,0.3608,95646.0,95645.0,0.052268]
[1733190606362,0.51791477,95646.0,95645.0,0.182268]
[1733190607353,0.52091477,95646.0,95645.0,0.182268]
[1733190607558,0.52391477,95646.0,95645.0,0.182268]
[1733190617379,0.006,95646.0,95645.0,0.052268]
[1733190617670,0.3608,95654.0,95653.0,0.052264]
[1733190617974,0.052256,95669.0,95667.0,0.052256]
[1733190618175,0.3608,95673.0,95672.0,0.052254]
[1733190618674,0.51842567,95673.0,95672.0,0.052254]
[1733190619566,0.052256,95669.0,95667.0,0.052256]
[1733190619870,0.052256,95667.0,95664.0,0.052258]
[1733190620261,0.15700774,95666.0,95664.0,0.052258]
[1733190622875,0.16600774,95666.0,95664.0,0.182218]
[1733190623670,0.17400774,95666.0,95664.0,0.182218]
[1733190623876,0.22626474,95666.0,95664.0,0.182218]
[1733190626476,0.24547099,95666.0,95664.0,0.20143005]
[1733190627277,0.24547099,95666.0,95664.0,0.07147005]